fUSD/lending_fUSD_20250708
["ID","MTS","AMOUNT","RATE_DAILY","PERIOD"]
[370306862,1751945453910,-460.0,0.0003041,7]
[370306863,1751945453920,-460.0,0.0003041,7]
[370306864,1751945453931,-153.84317,0.0003041,7]
[370306865,1751945453941,-460.0,0.0003041,7]
[370306866,1751945453952,-154.16188,0.0003041,7]
[370306867,1751945453962,-835.22,0.0003041,7]
[370306868,1751945453973,-542.73,0.0003041,7]
[370306869,1751945453984,-460.0,0.0003041,7]
[370306870,1751945453994,-729.25,0.0003041,7]
[370306871,1751945454003,-460.0,0.0003041,7]
[370306872,1751945454013,-1812.69,0.0003041,7]
[370306873,1751945454023,-460.0,0.0003041,7]
[370306874,1751945454032,-460.0,0.0003041,7]
[370306875,1751945454041,-1585.14,0.0003041,7]
[370306876,1751945454051,-151.0,0.0003041,7]
[370306877,1751945454060,-460.0,0.0003041,7]
[370306878,1751945454071,-460.0,0.0003041,7]
[370306879,1751945454081,-888.83,0.0003041,7]
[370306880,1751945454091,-708.52,0.0003041,7]
[370306881,1751945454102,-875.39,0.0003041,7]
[370306882,1751945454112,-569.59,0.0003041,7]
[370306883,1751945454122,-499.99,0.0003041,7]
[370306884,1751945454133,-499.28177896,0.0003041,7]
[370306885,1751945454143,-460.0,0.0003041,7]
[370306886,1751945454158,-460.0,0.0003041,7]
[370306887,1751945454169,-460.0,0.0003041,7]
[370306888,1751945454179,-460.0,0.0003041,7]
[370306889,1751945454190,-460.0,0.0003041,7]
[370306890,1751945454200,-460.0,0.0003041,7]
[370306891,1751945454210,-1599.48,0.0003041,7]
[370306892,1751945454219,-460.0,0.0003041,7]
[370306893,1751945454229,-518.65,0.0003041,7]
[370306894,1751945454240,-460.0,0.0003041,7]
[370306895,1751945454250,-460.0,0.0003041,7]
[370306896,1751945454260,-460.0,0.0003041,7]
[370306897,1751945454271,-460.0,0.0003041,7]
[370306898,1751945454280,-460.0,0.0003041,7]
[370306899,1751945454290,-793.44,0.0003041,7]
[370306900,1751945454301,-853.99,0.0003041,7]
[370306901,1751945454311,-460.0,0.0003041,7]
[370306902,1751945454323,-460.0,0.0003041,7]
[370306903,1751945454332,-1137.76,0.0003041,7]
[370306904,1751945454342,-874.77,0.0003041,7]
[370306905,1751945454352,-151.0,0.0003041,7]
[370306906,1751945454362,-520.0,0.0003041,7]
[370306907,1751945454371,-881.67,0.0003041,7]
[370306908,1751945454381,-735.65,0.0003041,7]
[370306909,1751945454390,-888.84,0.0003041,7]
[370306910,1751945454401,-659.26,0.0003041,7]
[370306911,1751945454412,-460.0,0.0003041,7]
[370306912,1751945454424,-460.0,0.0003041,7]
[370306913,1751945454435,-460.0,0.0003041,7]
[370306914,1751945454446,-1148.88,0.0003041,7]
[370306915,1751945454457,-490.0,0.0003041,7]
[370306916,1751945454467,-460.0,0.0003041,7]
[370306917,1751945454476,-158.48847,0.0003041,7]
[370306918,1751945454485,-473.34,0.0003041,7]
[370306919,1751945454495,-460.0,0.0003041,7]
[370306920,1751945454505,-460.0,0.0003041,7]
[370306921,1751945454515,-3273.32,0.0003041,7]
[370306922,1751945454525,-604.41,0.0003041,7]
[370306923,1751945454535,-151.0,0.0003041,7]
[370306924,1751945454545,-151.0,0.0003041,7]
[370306925,1751945454554,-460.0,0.0003041,7]
[370306926,1751945454565,-158.48847,0.0003041,7]
[370306927,1751945454574,-460.0,0.0003041,7]
[370306928,1751945454584,-460.0,0.0003041,7]
[370306929,1751945454594,-460.0,0.0003041,7]
[370306930,1751945454604,-520.0,0.0003041,7]
[370306931,1751945454614,-460.0,0.0003041,7]
[370306932,1751945454624,-542.06800986,0.0003041,7]
[370306933,1751945454633,-520.0,0.0003041,7]
[370306934,1751945454644,-600.23,0.0003041,7]
[370306935,1751945454654,-737.61,0.0003041,7]
[370306936,1751945454664,-7040.43,0.0003041,7]
[370306937,1751945454674,-460.0,0.0003041,7]
[370306938,1751945454684,-1590.72,0.0003041,7]
[370306939,1751945454694,-607.73,0.0003041,7]
[370306940,1751945454704,-192.43394298,0.0003041,7]
[370306941,1751945454714,-460.0,0.0003041,7]
[370306942,1751945454724,-12036.9454721,0.0003042,2]
[370306943,1751945454734,-500.0,0.00030441,7]
[370306944,1751945454745,-6642.04544032,0.00030452,23]
[370306945,1751945454755,-500.0,0.00030672,7]
[370306946,1751945454764,-586.24,0.00030672,7]
[370306947,1751945454774,-586.24,0.00030672,7]
[370306948,1751945454784,-176.37763117,0.00030672,7]
[370306949,1751945454793,-631.95,0.00030672,7]
[370306950,1751945454803,-500.0,0.00030673,7]
[370306951,1751945454812,-217.74457467,0.00030682,7]
[370306952,1751945454822,-500.0,0.00030682,7]
[370306953,1751945454831,-1697.88,0.00030682,7]
[370306954,1751945454840,-300.0,0.00030683,10]
[370306955,1751945454850,-460.0,0.00030683,7]
[370306956,1751945454859,-460.0,0.00030683,7]
[370306957,1751945454869,-460.0,0.00030683,7]
[370306958,1751945454878,-460.0,0.00030683,7]
[370306959,1751945454888,-460.0,0.00030683,7]
[370306960,1751945454898,-460.0,0.00030683,7]
[370306961,1751945454908,-460.0,0.00030683,7]
[370306962,1751945454917,-460.0,0.00030683,7]
[370306963,1751945454927,-460.0,0.00030683,7]
[370306964,1751945454936,-460.0,0.00030683,7]
[370306965,1751945454946,-460.0,0.00030683,7]
[370306966,1751945454956,-173.36,0.00030683,7]
[370306967,1751945454967,-475.01,0.00030683,7]
[370306968,1751945454977,-151.48614912,0.00030683,7]
[370306969,1751945454987,-460.0,0.00030683,7]
[370306970,1751945454998,-460.0,0.00030683,7]
[370306971,1751945455009,-167.25359642,0.00030683,7]
[370306972,1751945455020,-460.0,0.00030683,7]
[370306973,1751945455030,-616.54,0.00030683,7]
[370306974,1751945455040,-301.67,0.00030683,7]
[370306975,1751945455050,-337.8,0.00030683,7]
[370306976,1751945455060,-211.23318671,0.00030683,7]
[370306977,1751945455070,-460.0,0.00030683,7]
[370306978,1751945455257,-460.0,0.00030683,7]
[370306979,1751945455300,-460.0,0.00030683,7]
[370306980,1751945455310,-460.0,0.00030683,7]
[370306981,1751945455320,-460.0,0.00030683,7]
[370306982,1751945455330,-460.0,0.00030683,7]
[370306983,1751945455339,-460.0,0.00030683,7]
[370306984,1751945455349,-460.0,0.00030683,7]
[370306985,1751945455359,-460.0,0.00030683,7]
[370306986,1751945455368,-460.0,0.00030683,7]
[370306987,1751945455378,-475.17434005,0.00030683,7]
[370306988,1751945455388,-460.0,0.00030683,7]
[370306989,1751945455397,-460.0,0.00030683,7]
[370306990,1751945455408,-460.0,0.00030683,7]
[370306991,1751945455419,-460.0,0.00030683,7]
[370306992,1751945455430,-210.58481115,0.00030683,7]
[370306993,1751945455440,-530.3725755,0.00030683,7]
[370306994,1751945455450,-430.85635646,0.00030683,7]
[370306995,1751945455460,-386.31589363,0.00030683,7]
[370306996,1751945455471,-460.0,0.00030683,7]
[370306997,1751945455480,-460.0,0.00030683,7]
[370306998,1751945455490,-460.0,0.00030683,7]
[370306999,1751945455500,-286.44,0.00030683,7]
[370307000,1751945455511,-460.0,0.00030683,7]
[370307001,1751945455520,-460.0,0.00030683,7]
[370307002,1751945455532,-586.24,0.00030683,7]
[370307003,1751945455541,-586.24,0.00030683,7]
[370307004,1751945455551,-460.0,0.00030683,7]
[370307005,1751945455561,-460.0,0.00030683,7]
[370307006,1751945455572,-460.0,0.00030683,7]
[370307007,1751945455582,-460.0,0.00030683,7]
[370307008,1751945455592,-460.0,0.00030683,7]
[370307009,1751945455602,-460.0,0.00030683,7]
[370307010,1751945455613,-460.0,0.00030683,7]
[370307011,1751945455623,-460.0,0.00030683,7]
[370307012,1751945455634,-460.0,0.00030683,7]
[370307013,1751945455644,-460.0,0.00030683,7]
[370307014,1751945455654,-460.0,0.00030683,7]
[370307015,1751945455664,-460.0,0.00030683,7]
[370307016,1751945455674,-767.33,0.00030683,7]
[370307017,1751945455684,-460.0,0.00030683,7]
[370307018,1751945455695,-460.0,0.00030683,7]
[370307019,1751945455706,-460.0,0.00030683,7]
[370307020,1751945455716,-460.0,0.00030683,7]
[370307021,1751945455726,-460.0,0.00030683,7]
[370307022,1751945455736,-460.0,0.00030683,7]
[370307023,1751945455745,-460.0,0.00030683,7]
[370307024,1751945455756,-460.0,0.00030683,7]
[370307025,1751945455765,-460.0,0.00030683,7]
[370307026,1751945455775,-1178.76,0.00030683,7]
[370307027,1751945455785,-460.0,0.00030683,7]
[370307028,1751945455795,-704.28,0.00030683,7]
[370307029,1751945455804,-460.0,0.00030683,7]
[370307030,1751945455814,-1645.41,0.00030683,7]
[370307031,1751945455824,-460.0,0.00030683,7]
[370307032,1751945455834,-2135.64,0.00030683,7]
[370307033,1751945455843,-460.0,0.00030683,7]
[370307034,1751945455853,-460.0,0.00030683,7]
[370307035,1751945455863,-520.0,0.00030683,7]
[370307036,1751945455872,-460.0,0.00030683,7]
[370307037,1751945455883,-460.0,0.00030683,7]
[370307038,1751945455892,-460.0,0.00030683,7]
[370307039,1751945455902,-460.0,0.00030683,7]
[370307040,1751945455912,-460.0,0.00030683,7]
[370307041,1751945455922,-460.0,0.00030683,7]
[370307042,1751945455932,-151.0,0.00030683,7]
[370307043,1751945455942,-460.0,0.00030683,7]
[370307044,1751945455951,-151.0,0.00030683,7]
[370307045,1751945455961,-460.0,0.00030683,7]
[370307046,1751945455971,-721.37,0.00030683,7]
[370307047,1751945455982,-460.0,0.00030683,7]
[370307048,1751945455992,-501.91,0.00030683,7]
[370307049,1751945456002,-460.0,0.00030683,7]
[370307050,1751945456012,-460.0,0.00030683,7]
[370307051,1751945456022,-586.08218871,0.00030683,7]
[370307052,1751945456031,-151.0,0.00030683,7]
[370307053,1751945456041,-520.0,0.00030683,7]
[370307054,1751945456051,-807.73,0.00030683,7]
[370307055,1751945456060,-460.0,0.00030683,7]
[370307056,1751945456070,-460.0,0.00030683,7]
[370307057,1751945456080,-460.0,0.00030683,7]
[370307058,1751945456090,-460.0,0.00030683,7]
[370307059,1751945456100,-520.0,0.00030683,7]
[370307060,1751945456110,-460.0,0.00030683,7]
[370307061,1751945456120,-520.0,0.00030683,7]
[370307062,1751945456130,-460.0,0.00030683,7]
[370307063,1751945456140,-151.0,0.00030683,7]
[370307064,1751945456152,-524.20453601,0.00030683,7]
[370307065,1751945456162,-1605.57,0.00030683,7]
[370307066,1751945456172,-460.0,0.00030683,7]
[370307067,1751945456181,-460.0,0.00030683,7]
[370307068,1751945456191,-300.0,0.00030683,7]
[370307069,1751945456201,-460.0,0.00030683,7]
[370307070,1751945456211,-460.0,0.00030683,7]
[370307071,1751945456221,-460.0,0.00030683,7]
[370307072,1751945456232,-460.0,0.00030683,7]
[370307073,1751945456242,-460.0,0.00030683,7]
[370307074,1751945456252,-460.0,0.00030683,7]
[370307075,1751945456261,-463.39,0.00030683,7]
[370307076,1751945456271,-500.0,0.00030683,7]
[370307077,1751945456281,-500.0,0.00030683,7]
[370307078,1751945456291,-460.0,0.00030683,7]
[370307079,1751945456301,-520.92831904,0.00030683,7]
[370307080,1751945456310,-460.0,0.00030683,7]
[370307081,1751945456321,-460.0,0.00030683,7]
[370307082,1751945456331,-864.67,0.00030683,7]
[370307083,1751945456341,-460.0,0.00030683,7]
[370307084,1751945456350,-498.47333908,0.00030683,7]
[370307085,1751945456360,-460.0,0.00030683,7]
[370307086,1751945456370,-15082.41,0.00030683,7]
[370307087,1751945456380,-460.0,0.00030683,7]
[370307088,1751945456390,-500.0,0.00030683,7]
[370307089,1751945456400,-500.0,0.00030683,7]
[370307090,1751945456410,-460.0,0.00030683,7]
[370307091,1751945456419,-460.0,0.00030683,7]
[370307092,1751945456429,-1401.44,0.00030683,7]
[370307093,1751945456439,-460.0,0.00030683,7]
[370307094,1751945456449,-1697.88,0.00030683,7]
[370307095,1751945456459,-1697.88,0.00030683,7]
[370307096,1751945456468,-300.0,0.00030683,10]
[370307097,1751945456478,-305.49945557,0.00030683,10]
[370307098,1751945456487,-197.831745,0.00030684,2]
[370307099,1751945456496,-151.0,0.00030684,7]
[370307100,1751945456506,-460.0,0.00030684,7]
[370307101,1751945456515,-151.0,0.00030684,7]
[370307102,1751945456525,-151.0,0.00030684,7]
[370307103,1751945456535,-460.0,0.00030684,7]
[370307104,1751945456544,-460.0,0.00030684,7]
[370307105,1751945456554,-460.0,0.00030684,7]
[370307106,1751945456564,-460.0,0.00030684,7]
[370307107,1751945456574,-460.0,0.00030684,7]
[370307108,1751945456583,-460.0,0.00030684,7]
[370307109,1751945456593,-460.0,0.00030684,7]
[370307110,1751945456602,-460.0,0.00030684,7]
[370307111,1751945456611,-460.0,0.00030684,7]
[370307112,1751945456621,-460.0,0.00030684,7]
[370307113,1751945456631,-460.0,0.00030684,7]
[370307114,1751945456641,-152.86886,0.00030684,7]
[370307115,1751945456650,-605.67,0.00030684,7]
[370307116,1751945456660,-460.0,0.00030684,7]
[370307117,1751945456670,-460.0,0.00030684,7]
[370307118,1751945456680,-151.962344,0.00030684,7]
[370307119,1751945456689,-508.05,0.00030684,7]
[370307120,1751945456699,-460.0,0.00030684,7]
[370307121,1751945456708,-460.0,0.00030684,7]
[370307122,1751945456718,-493.61,0.00030684,7]
[370307123,1751945456727,-786.44,0.00030684,7]
[370307124,1751945456736,-715.27,0.00030684,7]
[370307125,1751945456746,-460.0,0.00030684,7]
[370307126,1751945456755,-460.0,0.00030684,7]
[370307127,1751945456765,-468.71433102,0.00030684,7]
[370307128,1751945456774,-460.0,0.00030684,7]
[370307129,1751945456784,-460.0,0.00030684,7]
[370307130,1751945456794,-460.0,0.00030684,7]
[370307131,1751945456803,-460.0,0.00030684,7]
[370307132,1751945456813,-657.88,0.00030684,7]
[370307133,1751945456822,-220.57,0.00030684,7]
[370307134,1751945456831,-460.0,0.00030684,7]
[370307135,1751945456841,-460.0,0.00030684,7]
[370307136,1751945456851,-455.18,0.00030684,7]
[370307137,1751945456860,-460.0,0.00030684,7]
[370307138,1751945456870,-460.0,0.00030684,7]
[370307139,1751945456879,-460.0,0.00030684,7]
[370307140,1751945456888,-460.0,0.00030684,7]
[370307141,1751945456897,-151.0,0.00030684,7]
[370307142,1751945456907,-460.0,0.00030684,7]
[370307143,1751945456916,-645.05,0.00030684,7]
[370307144,1751945456925,-460.0,0.00030684,7]
[370307145,1751945456935,-460.0,0.00030684,7]
[370307146,1751945456944,-460.0,0.00030684,7]
[370307147,1751945456953,-460.0,0.00030684,7]
[370307148,1751945456963,-460.0,0.00030684,7]
[370307149,1751945456972,-184.56120946,0.00030684,7]
[370307150,1751945456981,-460.0,0.00030684,7]
[370307151,1751945456990,-460.0,0.00030684,7]
[370307152,1751945457000,-151.0,0.00030684,7]
[370307153,1751945457009,-460.0,0.00030684,7]
[370307154,1751945457018,-460.0,0.00030684,7]
[370307155,1751945457028,-151.0,0.00030684,7]
[370307156,1751945457038,-460.0,0.00030684,7]
[370307157,1751945457047,-850.46,0.00030684,7]
[370307158,1751945457056,-460.0,0.00030684,7]
[370307159,1751945457065,-747.51,0.00030684,7]
[370307160,1751945457076,-460.0,0.00030684,7]
[370307161,1751945457085,-151.0,0.00030684,7]
[370307162,1751945457095,-460.0,0.00030684,7]
[370307163,1751945457104,-460.0,0.00030684,7]
[370307164,1751945457113,-460.0,0.00030684,7]
[370307165,1751945457122,-460.0,0.00030684,7]
[370307166,1751945457132,-460.0,0.00030684,7]
[370307167,1751945457141,-490.0,0.00030684,7]
[370307168,1751945457157,-581.56,0.00030684,7]
[370307169,1751945457166,-777.18,0.00030684,7]
[370307170,1751945457175,-460.0,0.00030684,7]
[370307171,1751945457185,-460.0,0.00030684,7]
[370307172,1751945457195,-460.0,0.00030684,7]
[370307173,1751945457204,-460.0,0.00030684,7]
[370307174,1751945457215,-460.0,0.00030684,7]
[370307175,1751945457224,-710.37,0.00030684,7]
[370307176,1751945457234,-460.0,0.00030684,7]
[370307177,1751945457243,-460.0,0.00030684,7]
[370307178,1751945457252,-151.0,0.00030684,7]
[370307179,1751945457262,-460.0,0.00030684,7]
[370307180,1751945457272,-460.0,0.00030684,7]
[370307181,1751945457281,-460.0,0.00030684,7]
[370307182,1751945457290,-460.0,0.00030684,7]
[370307183,1751945457300,-460.0,0.00030684,7]
[370307184,1751945457309,-460.0,0.00030684,7]
[370307185,1751945457319,-151.0,0.00030684,7]
[370307186,1751945457328,-546.88,0.00030684,7]
[370307187,1751945457338,-460.0,0.00030684,7]
[370307188,1751945457347,-460.0,0.00030684,7]
[370307189,1751945457357,-460.0,0.00030684,7]
[370307190,1751945457366,-819.6,0.00030684,7]
[370307191,1751945457375,-460.0,0.00030684,7]
[370307192,1751945457385,-151.0,0.00030684,7]
[370307193,1751945457395,-560.2,0.00030684,7]
[370307194,1751945457404,-460.0,0.00030684,7]
[370307195,1751945457415,-460.0,0.00030684,7]
[370307196,1751945457424,-617.33,0.00030684,7]
[370307197,1751945457434,-1125.96,0.00030684,7]
[370307198,1751945457444,-394.66213422,0.00030684,7]
[370307199,1751945457453,-375.57118895,0.00030684,7]
[370307200,1751945457463,-460.0,0.00030684,7]
[370307201,1751945457472,-897.38,0.00030684,7]
[370307202,1751945457482,-460.0,0.00030684,7]
[370307203,1751945457492,-460.0,0.00030684,7]
[370307204,1751945457502,-678.69,0.00030684,7]
[370307205,1751945457512,-460.0,0.00030684,7]
[370307206,1751945457522,-247.15272794,0.00030684,7]
[370307207,1751945457532,-460.0,0.00030684,7]
[370307208,1751945457542,-630.09,0.00030684,7]
[370307209,1751945457551,-637.51,0.00030684,7]
[370307210,1751945457561,-1142.45,0.00030684,7]
[370307211,1751945457571,-599.31,0.00030684,7]
[370307212,1751945457580,-704.7,0.00030684,7]
[370307213,1751945457590,-643.95,0.00030684,7]
[370307214,1751945457600,-487.03,0.00030684,7]
[370307215,1751945457663,-460.0,0.00030684,7]
[370307216,1751945457673,-460.0,0.00030684,7]
[370307217,1751945457682,-741.32,0.00030684,7]
[370307218,1751945457691,-151.0,0.00030684,7]
[370307219,1751945457702,-535.9,0.00030684,7]
[370307220,1751945457713,-460.0,0.00030684,7]
[370307221,1751945457722,-460.0,0.00030684,7]
[370307222,1751945457732,-460.0,0.00030684,7]
[370307223,1751945457742,-460.0,0.00030684,7]
[370307224,1751945457752,-333.38975191,0.00030684,7]
[370307225,1751945457762,-460.0,0.00030684,7]
[370307226,1751945457771,-151.0,0.00030684,7]
[370307227,1751945457781,-460.0,0.00030684,7]
[370307228,1751945457791,-460.0,0.00030684,7]
[370307229,1751945457801,-151.0,0.00030684,7]
[370307230,1751945457810,-460.0,0.00030684,7]
[370307231,1751945457819,-264.647261,0.00030684,7]
[370307232,1751945457829,-531.51,0.00030684,7]
[370307233,1751945457839,-694.77,0.00030684,7]
[370307234,1751945457848,-641.57,0.00030684,7]
[370307235,1751945457857,-535.54,0.00030684,7]
[370307236,1751945457867,-672.13,0.00030684,7]
[370307237,1751945457876,-460.0,0.00030684,7]
[370307238,1751945457885,-500.01,0.00030684,7]
[370307239,1751945457894,-583.92,0.00030684,7]
[370307240,1751945457904,-460.0,0.00030684,7]
[370307241,1751945457913,-593.22,0.00030684,7]
[370307242,1751945457924,-287.24152539,0.00030684,7]
[370307243,1751945457933,-686.51,0.00030684,7]
[370307244,1751945457943,-460.0,0.00030684,7]
[370307245,1751945457952,-460.0,0.00030684,7]
[370307246,1751945457961,-460.0,0.00030684,7]
[370307247,1751945457970,-151.0,0.00030684,7]
[370307248,1751945457980,-231.914905,0.00030684,7]
[370307249,1751945457989,-460.0,0.00030684,7]
[370307250,1751945457999,-460.0,0.00030684,7]
[370307251,1751945458008,-460.0,0.00030684,7]
[370307252,1751945458018,-686.79,0.00030684,7]
[370307253,1751945458027,-460.0,0.00030684,7]
[370307254,1751945458036,-460.0,0.00030684,7]
[370307255,1751945458045,-151.0,0.00030684,7]
[370307256,1751945458054,-460.0,0.00030684,7]
[370307257,1751945458064,-2590.95,0.00030684,7]
[370307258,1751945458072,-460.0,0.00030684,7]
[370307259,1751945458082,-460.0,0.00030684,7]
[370307260,1751945458091,-460.0,0.00030684,7]
[370307261,1751945458100,-460.0,0.00030684,7]
[370307262,1751945458110,-460.0,0.00030684,7]
[370307263,1751945458119,-694.35,0.00030684,7]
[370307264,1751945458129,-460.0,0.00030684,7]
[370307265,1751945458138,-460.0,0.00030684,7]
[370307266,1751945458147,-757.04,0.00030684,7]
[370307267,1751945458160,-460.0,0.00030684,7]
[370307268,1751945458170,-590.65,0.00030684,7]
[370307269,1751945458179,-1329.96,0.00030684,7]
[370307270,1751945458189,-585.31,0.00030684,7]
[370307271,1751945458199,-460.0,0.00030684,7]
[370307272,1751945458209,-569.5,0.00030684,7]
[370307273,1751945458220,-515.87,0.00030684,7]
[370307274,1751945458231,-672.65,0.00030684,7]
[370307275,1751945458240,-460.0,0.00030684,7]
[370307276,1751945458250,-666.81,0.00030684,7]
[370307277,1751945458260,-460.0,0.00030684,7]
[370307278,1751945458270,-460.0,0.00030684,7]
[370307279,1751945458280,-977.41,0.00030684,7]
[370307280,1751945458289,-541.23,0.00030684,7]
[370307281,1751945458300,-732.96,0.00030684,7]
[370307282,1751945458311,-617.19,0.00030684,7]
[370307283,1751945458323,-852.22,0.00030684,7]
[370307284,1751945458333,-460.0,0.00030684,7]
[370307285,1751945458342,-460.0,0.00030684,7]
[370307286,1751945458351,-460.0,0.00030684,7]
[370307287,1751945458363,-460.0,0.00030684,7]
[370307288,1751945458372,-460.0,0.00030684,7]
[370307289,1751945458383,-873.77,0.00030684,7]
[370307290,1751945458393,-669.08,0.00030684,7]
[370307291,1751945458403,-542.37,0.00030684,7]
[370307292,1751945458413,-460.0,0.00030684,7]
[370307293,1751945458422,-460.0,0.00030684,7]
[370307294,1751945458431,-460.0,0.00030684,7]
[370307295,1751945458441,-460.0,0.00030684,7]
[370307296,1751945458450,-687.22,0.00030684,7]
[370307297,1751945458459,-1304.98,0.00030684,7]
[370307298,1751945458468,-460.0,0.00030684,7]
[370307299,1751945458477,-460.0,0.00030684,7]
[370307300,1751945458486,-1109.25,0.00030684,7]
[370307301,1751945458499,-460.0,0.00030684,7]
[370307302,1751945458509,-278.60144637,0.00030684,7]
[370307303,1751945458519,-384.612349,0.00030684,7]
[370307304,1751945458530,-301.452618,0.00030684,7]
[370307305,1751945458539,-460.0,0.00030684,7]
[370307306,1751945458549,-349.680046,0.00030684,7]
[370307307,1751945458558,-2650.88,0.00030684,7]
[370307308,1751945458567,-460.0,0.00030684,7]
[370307309,1751945458577,-2976.28,0.00030684,7]
[370307310,1751945458586,-465.45176,0.00030684,7]
[370307311,1751945458595,-1352.42,0.00030684,7]
[370307312,1751945458604,-460.0,0.00030684,7]
[370307313,1751945458613,-954.23,0.00030684,7]
[370307314,1751945458621,-460.0,0.00030684,7]
[370307315,1751945458630,-460.0,0.00030684,7]
[370307316,1751945458639,-517.4,0.00030684,7]
[370307317,1751945458648,-460.0,0.00030684,7]
[370307318,1751945458657,-460.0,0.00030684,7]
[370307319,1751945458666,-544.94,0.00030684,7]
[370307320,1751945458674,-460.0,0.00030684,7]
[370307321,1751945458684,-460.0,0.00030684,7]
[370307322,1751945458693,-427.55992727,0.00030684,7]
[370307323,1751945458702,-903.0,0.00030684,7]
[370307324,1751945458711,-151.0,0.00030684,7]
[370307325,1751945458720,-460.0,0.00030684,7]
[370307326,1751945458731,-460.0,0.00030684,7]
[370307327,1751945458740,-460.0,0.00030684,7]
[370307328,1751945458750,-151.0,0.00030684,7]
[370307329,1751945458759,-460.0,0.00030684,7]
[370307330,1751945458769,-151.0,0.00030684,7]
[370307331,1751945458778,-460.0,0.00030684,7]
[370307332,1751945458788,-585.49,0.00030684,7]
[370307333,1751945458797,-605.39,0.00030684,7]
[370307334,1751945458807,-460.0,0.00030684,7]
[370307335,1751945458816,-1823.7,0.00030684,7]
[370307336,1751945458825,-460.0,0.00030684,7]
[370307337,1751945458835,-739.45,0.00030684,7]
[370307338,1751945458844,-756.0,0.00030684,7]
[370307339,1751945458853,-497.036803,0.00030684,7]
[370307340,1751945458862,-2017.01,0.00030684,7]
[370307341,1751945458871,-460.0,0.00030684,7]
[370307342,1751945458881,-497.036803,0.00030684,7]
[370307343,1751945458891,-460.0,0.00030684,7]
[370307344,1751945458901,-851.2,0.00030684,7]
[370307345,1751945458911,-460.0,0.00030684,7]
[370307346,1751945458921,-980.57,0.00030684,7]
[370307347,1751945458930,-1389.4,0.00030684,7]
[370307348,1751945458940,-1000.0,0.00030684,7]
[370307349,1751945458951,-460.0,0.00030684,7]
[370307350,1751945458960,-205.22442983,0.00030684,7]
[370307351,1751945458971,-460.0,0.00030684,7]
[370307352,1751945458982,-460.0,0.00030684,7]
[370307353,1751945458992,-494.72,0.00030684,7]
[370307354,1751945459003,-460.0,0.00030684,7]
[370307355,1751945459015,-1196.75,0.00030684,7]
[370307356,1751945459025,-523.18,0.00030684,7]
[370307357,1751945459035,-460.0,0.00030684,7]
[370307358,1751945459045,-695.63,0.00030684,7]
[370307359,1751945459053,-460.0,0.00030684,7]
[370307360,1751945459063,-1182.73,0.00030684,7]
[370307361,1751945459073,-151.0,0.00030684,7]